{"text_format":"1","workbook":"xlsx","n_sheets":1,"sheets":["Sheet2"],"not_rendered":{"charts":0,"images":0,"macros":1,"external_links":0,"defined_names":1,"comments":0,"pivot_tables":0},"unopened":[],"bounds":{"document_bytes":16777216,"sheet_cells":100000,"rows_first":2000,"rows_last":500,"rows_between":2000,"halvings":0,"cell_chars":16384,"cell_head_chars":4096},"cells_cut":0,"cells_raw":0,"read":"whole","date_system":"1900"}

{"sheet":"Sheet2","index":0,"n_rows":26,"n_cols":14,"rows_kept":26,"cut":false,"hidden":false,"merged":[[9,0,9,13],[11,7,11,9],[11,4,11,6],[11,1,11,3],[11,13,12,13],[11,0,12,0],[11,10,11,12]]}
[]
[]
[]
[]
[]
[]
[]
[]
[]
["مراجعة حصص الدقيق"]
[]
["الشهر","مطاحن أبو على",null,null,"الأخوة",null,null,"الملكة والامير",null,null,"أبيس",null,null,"المحلاحظات"]
[null," مخابز 50ك","مستودعات 10ك","الإجمالى بالطن"," مخابز 50ك","مستودعات 10ك","الإجمالى بالطن"," مخابز 50ك","مستودعات 10ك","الإجمالى بالطن"," مخابز 50ك","مستودعات 10ك","الإجمالى بالطن"]
["2018-01-01",0.75,1,"إجمالى",0.75,1,"إجمالى",0.75,1,"إجمالى",0.75,1,"إجمالى"]
["2018-02-01",0.75,1,null,null,null,{"$f":"SUM(E15:F15)","v":0},null,null,{"$f":"SUM(H15:I15)","v":0},null,null,{"$f":"SUM(K15:L15)","v":0}]
["2018-03-01",null,null,null,null,null,0,null,null,0,null,null,0]
["2018-04-01",null,null,null,null,null,0,null,null,0,null,null,0]
["2018-05-01",null,null,null,null,null,0,null,null,0,null,null,0]
["2018-06-01",null,null,null,null,null,0,null,null,0,null,null,0]
["2018-07-01",null,null,null,null,null,0,null,null,0,null,null,0]
["2018-08-01",null,null,null,null,null,0,null,null,0,null,null,0]
["2018-09-01",null,null,null,null,null,0,null,null,0,null,null,0]
["2018-10-01",null,null,null,null,null,0,null,null,0,null,null,0]
["2018-11-01",null,null,null,null,null,0,null,null,0,null,null,0]
["2018-12-01",null,null,null,null,null,0,null,null,0,null,null,0]
[null,null,null,null,null,null,{"$f":"SUM(G14:G25)","v":0},null,null,{"$f":"SUM(J14:J25)","v":0},null,null,{"$f":"SUM(M14:M25)","v":0}]